[Event "Titled Tuesday Blitz May 10 Late 2022"]
[White "Chen, Justin"]
[Black "Jones, Gawain C B"]
[WhiteFideId "2098199"]
[BlackFideId "409561"]
[WhiteElo "2489"]
[BlackElo "2657"]
[Result "0-1"]
[Round "01"]
[TimeControl "180+1"]
[Date "2022.05.10"]
[WhiteClock "0:00:01"]
[BlackClock "0:00:13"]

1. Nf3 {[%clk 0:02:53]}  g6 {[%clk 0:02:59]} 2. d4 {[%clk 0:02:47]}  Nf6 {[%clk 0:02:59]} 3. b3 {[%clk 0:02:44]}  c5 {[%clk 0:02:58]} 4. dxc5 {[%clk 0:02:45]}  Qa5+ {[%clk 0:02:57]} 5. Nbd2 {[%clk 0:02:43]}  Qxc5 {[%clk 0:02:51]} 6. Bb2 {[%clk 0:02:43]}  Bg7 {[%clk 0:02:51]} 7. e3 {[%clk 0:02:42]}  O-O {[%clk 0:02:51]} 8. a3 {[%clk 0:02:43]}  Qc7 {[%clk 0:02:49]} 9. c4 {[%clk 0:02:38]}  Nc6 {[%clk 0:02:49]} 10. Be2 {[%clk 0:02:37]}  Rd8 {[%clk 0:02:48]} 11. Rc1 {[%clk 0:02:35]}  d5 {[%clk 0:02:48]} 12. cxd5 {[%clk 0:02:33]}  Rxd5 {[%clk 0:02:49]} 13. O-O {[%clk 0:02:31]}  Bg4 {[%clk 0:02:49]} 14. h3 {[%clk 0:02:22]}  Bf5 {[%clk 0:02:47]} 15. Qe1 {[%clk 0:02:07]}  Rdd8 {[%clk 0:02:30]} 16. b4 {[%clk 0:02:01]}  a6 {[%clk 0:02:29]} 17. Nb3 {[%clk 0:01:58]}  Qd6 {[%clk 0:02:22]} 18. Nfd4 {[%clk 0:01:52]}  Nxd4 {[%clk 0:02:22]} 19. Bxd4 {[%clk 0:01:43]}  e5 {[%clk 0:02:22]} 20. Ba1 {[%clk 0:01:40]}  Rac8 {[%clk 0:02:21]} 21. Nc5 {[%clk 0:01:36]}  Qe7 {[%clk 0:02:17]} 22. Rd1 {[%clk 0:01:20]}  Ne4 {[%clk 0:02:15]} 23. Nxe4 {[%clk 0:01:12]}  Bxe4 {[%clk 0:02:16]} 24. Rxd8+ {[%clk 0:01:08]}  Qxd8 {[%clk 0:02:15]} 25. Qd1 {[%clk 0:00:57]}  Qxd1 {[%clk 0:01:59]} 26. Bxd1 {[%clk 0:00:56]}  Kf8 {[%clk 0:02:00]} 27. Bb3 {[%clk 0:00:42]}  Bd3 {[%clk 0:01:54]} 28. Rd1 {[%clk 0:00:38]}  e4 {[%clk 0:01:54]} 29. f3 {[%clk 0:00:27]}  Bxa1 {[%clk 0:01:49]} 30. Rxa1 {[%clk 0:00:28]}  f5 {[%clk 0:01:45]} 31. Bd5 {[%clk 0:00:25]}  b6 {[%clk 0:01:45]} 32. fxe4 {[%clk 0:00:25]}  fxe4 {[%clk 0:01:45]} 33. Kf2 {[%clk 0:00:20]}  Ke7 {[%clk 0:01:42]} 34. Kg3 {[%clk 0:00:18]}  Kd6 {[%clk 0:01:42]} 35. Bb3 {[%clk 0:00:16]}  Ke5 {[%clk 0:01:36]} 36. Ra2 {[%clk 0:00:16]}  Rc3 {[%clk 0:01:30]} 37. Bg8 {[%clk 0:00:15]}  h6 {[%clk 0:01:26]} 38. Kf2 {[%clk 0:00:14]}  Rc8 {[%clk 0:01:19]} 39. Bb3 {[%clk 0:00:13]}  Rf8+ {[%clk 0:01:19]} 40. Kg3 {[%clk 0:00:11]}  h5 {[%clk 0:01:12]} 41. h4 {[%clk 0:00:05]}  Rc8 {[%clk 0:01:05]} 42. Bf7 {[%clk 0:00:04]}  Rc6 {[%clk 0:01:00]} 43. Rf2 {[%clk 0:00:03]}  a5 {[%clk 0:00:45]} 44. bxa5 {[%clk 0:00:03]}  bxa5 {[%clk 0:00:46]} 45. Be8 {[%clk 0:00:03]}  Rb6 {[%clk 0:00:39]} 46. Rf7 {[%clk 0:00:03]}  Rb3 {[%clk 0:00:27]} 47. Ra7 {[%clk 0:00:03]}  Rxa3 {[%clk 0:00:24]} 48. Bxg6 {[%clk 0:00:03]}  Be2 {[%clk 0:00:24]} 49. Kf2 {[%clk 0:00:04]}  Ra2 {[%clk 0:00:22]} 50. Bh7 {[%clk 0:00:01]}  Bd3+ {[%clk 0:00:16]} 51. Kg3 {[%clk 0:00:01]}  Bf1 {[%clk 0:00:13]} 52. Kh2 {[%clk 0:00:01]}  Bxg2 {[%clk 0:00:13]} 53. Kg3 {[%clk 0:00:01]}  Bf3 {[%clk 0:00:13]} 0-1


[Site "https://www.chess.com"]

[Event "Titled Tuesday Blitz May 10 Late 2022"]
[White "Chyngyz, Sultai"]
[Black "Kruckenhauser, Arthur"]
[WhiteFideId "13803158"]
[BlackFideId "1642812"]
[WhiteElo "1365"]
[BlackElo "2243"]
[Result "0-1"]
[Round "01"]
[TimeControl "180+1"]
[Date "2022.05.11"]
[WhiteClock "0:00:05"]
[BlackClock "0:00:54"]

1. e4 {[%clk 0:02:53]}  e5 {[%clk 0:02:58]} 2. Nf3 {[%clk 0:02:50]}  Nc6 {[%clk 0:02:56]} 3. Bc4 {[%clk 0:02:50]}  Bc5 {[%clk 0:02:54]} 4. d3 {[%clk 0:02:35]}  Nf6 {[%clk 0:02:54]} 5. Nc3 {[%clk 0:02:34]}  h6 {[%clk 0:02:52]} 6. h3 {[%clk 0:02:34]}  d6 {[%clk 0:02:50]} 7. a4 {[%clk 0:02:35]}  a6 {[%clk 0:02:43]} 8. O-O {[%clk 0:02:31]}  O-O {[%clk 0:02:42]} 9. Be3 {[%clk 0:02:09]}  Ba7 {[%clk 0:02:32]} 10. Bxa7 {[%clk 0:02:05]}  Rxa7 {[%clk 0:02:31]} 11. d4 {[%clk 0:02:04]}  Re8 {[%clk 0:02:29]} 12. dxe5 {[%clk 0:01:56]}  Nxe5 {[%clk 0:02:28]} 13. Nxe5 {[%clk 0:01:55]}  Rxe5 {[%clk 0:02:29]} 14. f4 {[%clk 0:01:54]}  Re8 {[%clk 0:02:29]} 15. Qf3 {[%clk 0:01:39]}  Ra8 {[%clk 0:02:21]} 16. Rad1 {[%clk 0:01:38]}  Qe7 {[%clk 0:02:18]} 17. Rfe1 {[%clk 0:01:37]}  Be6 {[%clk 0:02:10]} 18. Bd3 {[%clk 0:01:30]}  Rad8 {[%clk 0:02:07]} 19. Kh2 {[%clk 0:00:55]}  Nd7 {[%clk 0:01:56]} 20. Qg3 {[%clk 0:00:49]}  Nc5 {[%clk 0:01:54]} 21. f5 {[%clk 0:00:45]}  Nxd3 {[%clk 0:01:44]} 22. Qxd3 {[%clk 0:00:41]}  Bd7 {[%clk 0:01:30]} 23. Qg3 {[%clk 0:00:38]}  Bc6 {[%clk 0:01:22]} 24. b4 {[%clk 0:00:34]}  Qe5 {[%clk 0:01:16]} 25. b5 {[%clk 0:00:31]}  axb5 {[%clk 0:01:13]} 26. axb5 {[%clk 0:00:27]}  Bxb5 {[%clk 0:01:13]} 27. Rd5 {[%clk 0:00:14]}  Qxg3+ {[%clk 0:01:13]} 28. Kxg3 {[%clk 0:00:15]}  Bc6 {[%clk 0:01:13]} 29. Rd4 {[%clk 0:00:15]}  Re5 {[%clk 0:01:13]} 30. Kf4 {[%clk 0:00:13]}  Rde8 {[%clk 0:01:10]} 31. Rb4 {[%clk 0:00:11]}  Rc5 {[%clk 0:01:10]} 32. Re3 {[%clk 0:00:10]}  g6 {[%clk 0:01:09]} 33. fxg6 {[%clk 0:00:10]}  fxg6 {[%clk 0:01:09]} 34. g4 {[%clk 0:00:10]}  Kg7 {[%clk 0:01:08]} 35. Rb1 {[%clk 0:00:09]}  b6 {[%clk 0:01:06]} 36. Rf1 {[%clk 0:00:09]}  Rf8+ {[%clk 0:01:06]} 37. Kg3 {[%clk 0:00:08]}  Rxf1 {[%clk 0:01:07]} 38. Ne2 {[%clk 0:00:04]}  Rf8 {[%clk 0:01:04]} 39. Nd4 {[%clk 0:00:05]}  Bd7 {[%clk 0:01:04]} 40. g5 {[%clk 0:00:04]}  Rxg5+ {[%clk 0:01:04]} 41. Kh2 {[%clk 0:00:05]}  Rf2+ {[%clk 0:01:04]} 42. Kh1 {[%clk 0:00:06]}  Rd2 {[%clk 0:00:57]} 43. Nf3 {[%clk 0:00:05]}  Rd1+ {[%clk 0:00:58]} 44. Kh2 {[%clk 0:00:06]}  Rc5 {[%clk 0:00:58]} 45. c4 {[%clk 0:00:06]}  Rxc4 {[%clk 0:00:58]} 46. e5 {[%clk 0:00:05]}  dxe5 {[%clk 0:00:55]} 47. Nxe5 {[%clk 0:00:05]}  Rc2+ {[%clk 0:00:55]} 48. Kg3 {[%clk 0:00:05]}  Bf5 {[%clk 0:00:55]} 49. Nf3 {[%clk 0:00:05]}  Rd7 {[%clk 0:00:54]} 50. h4 {[%clk 0:00:06]}  b5 {[%clk 0:00:53]} 51. h5 {[%clk 0:00:06]}  gxh5 {[%clk 0:00:53]} 52. Ne5 {[%clk 0:00:06]}  Re7 {[%clk 0:00:53]} 53. Rf3 {[%clk 0:00:05]}  Bg6 {[%clk 0:00:52]} 54. Nd3 {[%clk 0:00:04]}  Bxd3 {[%clk 0:00:52]} 55. Rxd3 {[%clk 0:00:04]}  c5 {[%clk 0:00:52]} 56. Kf3 {[%clk 0:00:05]}  c4 {[%clk 0:00:52]} 57. Rd4 {[%clk 0:00:05]}  b4 {[%clk 0:00:53]} 58. Re4 {[%clk 0:00:05]}  Rxe4 {[%clk 0:00:52]} 59. Kg3 {[%clk 0:00:05]}  b3 {[%clk 0:00:53]} 60. Kh3 {[%clk 0:00:05]}  Re3+ {[%clk 0:00:53]} 61. Kh4 {[%clk 0:00:05]}  Rh2# {[%clk 0:00:54]} 0-1


[Site "https://www.chess.com"]

[Event "Titled Tuesday Blitz May 10 Late 2022"]
[White "Dilmukhametov, Artur"]
[Black "Yedidia, Daniel"]
[WhiteFideId "24179922"]
[BlackFideId "30905907"]
[WhiteElo "2206"]
[BlackElo "2628"]
[Result "1-0"]
[Round "01"]
[TimeControl "180+1"]
[Date "2022.05.11"]
[WhiteClock "0:00:05"]
[BlackClock "0:00:01"]

1. e4 {[%clk 0:02:57]}  e5 {[%clk 0:02:59]} 2. Nf3 {[%clk 0:02:56]}  Nc6 {[%clk 0:02:58]} 3. Bb5 {[%clk 0:02:56]}  a6 {[%clk 0:02:58]} 4. Ba4 {[%clk 0:02:56]}  Nf6 {[%clk 0:02:59]} 5. Bxc6 {[%clk 0:02:45]}  dxc6 {[%clk 0:02:58]} 6. d3 {[%clk 0:02:46]}  Bd6 {[%clk 0:02:57]} 7. Nbd2 {[%clk 0:02:45]}  Be6 {[%clk 0:02:56]} 8. b3 {[%clk 0:02:42]}  Nd7 {[%clk 0:02:53]} 9. Nc4 {[%clk 0:02:39]}  f6 {[%clk 0:02:53]} 10. O-O {[%clk 0:02:38]}  O-O {[%clk 0:02:53]} 11. Nh4 {[%clk 0:02:37]}  Qe8 {[%clk 0:02:52]} 12. Qf3 {[%clk 0:02:35]}  g6 {[%clk 0:02:46]} 13. Qe2 {[%clk 0:02:24]}  Qf7 {[%clk 0:02:39]} 14. f4 {[%clk 0:02:19]}  exf4 {[%clk 0:02:29]} 15. Bxf4 {[%clk 0:02:20]}  Bxf4 {[%clk 0:02:22]} 16. Rxf4 {[%clk 0:02:21]}  g5 {[%clk 0:02:22]} 17. Nf5 {[%clk 0:02:22]}  Qe8 {[%clk 0:02:10]} 18. Rf2 {[%clk 0:02:17]}  Kh8 {[%clk 0:01:58]} 19. Raf1 {[%clk 0:02:16]}  Qg6 {[%clk 0:01:58]} 20. Nce3 {[%clk 0:02:14]}  Rae8 {[%clk 0:01:57]} 21. Qd2 {[%clk 0:02:07]}  Ne5 {[%clk 0:01:57]} 22. Qc3 {[%clk 0:02:06]}  h5 {[%clk 0:01:51]} 23. Nd4 {[%clk 0:01:58]}  Bd7 {[%clk 0:01:44]} 24. Nf3 {[%clk 0:01:50]}  Ng4 {[%clk 0:01:34]} 25. Nxg4 {[%clk 0:01:49]}  hxg4 {[%clk 0:01:34]} 26. Nd4 {[%clk 0:01:37]}  Kg7 {[%clk 0:01:31]} 27. Nf5+ {[%clk 0:01:27]}  Bxf5 {[%clk 0:01:30]} 28. Rxf5 {[%clk 0:01:28]}  Re6 {[%clk 0:01:23]} 29. Qb4 {[%clk 0:01:23]}  b6 {[%clk 0:01:21]} 30. Qc4 {[%clk 0:01:23]}  Rd6 {[%clk 0:01:18]} 31. Qxa6 {[%clk 0:01:23]}  Rh8 {[%clk 0:00:51]} 32. Qb7 {[%clk 0:01:16]}  Rd7 {[%clk 0:00:41]} 33. Qxc6 {[%clk 0:01:08]}  Rf7 {[%clk 0:00:41]} 34. e5 {[%clk 0:00:59]}  Qh5 {[%clk 0:00:34]} 35. Rxf6 {[%clk 0:00:31]}  Qxh2+ {[%clk 0:00:34]} 36. Kf2 {[%clk 0:00:32]}  Qxe5 {[%clk 0:00:27]} 37. Rxf7+ {[%clk 0:00:29]}  Kxf7 {[%clk 0:00:28]} 38. Qc4+ {[%clk 0:00:18]}  Kg7 {[%clk 0:00:26]} 39. Qe4 {[%clk 0:00:10]}  Rf8+ {[%clk 0:00:19]} 40. Ke2 {[%clk 0:00:10]}  Qb2 {[%clk 0:00:14]} 41. Rxf8 {[%clk 0:00:10]}  Qxc2+ {[%clk 0:00:13]} 42. Ke3 {[%clk 0:00:10]}  Kxf8 {[%clk 0:00:13]} 43. Qxg4 {[%clk 0:00:08]}  c5 {[%clk 0:00:09]} 44. Qf5+ {[%clk 0:00:07]}  Ke8 {[%clk 0:00:09]} 45. Qe6+ {[%clk 0:00:07]}  Kf8 {[%clk 0:00:09]} 46. Qf6+ {[%clk 0:00:07]}  Ke8 {[%clk 0:00:09]} 47. Qe6+ {[%clk 0:00:06]}  Kf8 {[%clk 0:00:10]} 48. Qxb6 {[%clk 0:00:06]}  Qxg2 {[%clk 0:00:09]} 49. Qxc5+ {[%clk 0:00:06]}  Kf7 {[%clk 0:00:09]} 50. Qf5+ {[%clk 0:00:06]}  Kg7 {[%clk 0:00:09]} 51. Qe5+ {[%clk 0:00:06]}  Kf8 {[%clk 0:00:09]} 52. Qc5+ {[%clk 0:00:05]}  Kg7 {[%clk 0:00:08]} 53. Qe5+ {[%clk 0:00:06]}  Kf8 {[%clk 0:00:09]} 54. Qe4 {[%clk 0:00:07]}  Qxa2 {[%clk 0:00:08]} 55. Qf5+ {[%clk 0:00:06]}  Ke8 {[%clk 0:00:06]} 56. Qg6+ {[%clk 0:00:07]}  Kd7 {[%clk 0:00:06]} 57. Qg7+ {[%clk 0:00:07]}  Ke8 {[%clk 0:00:05]} 58. Qxg5 {[%clk 0:00:07]}  Qxb3 {[%clk 0:00:05]} 59. Qe5+ {[%clk 0:00:07]}  Kf8 {[%clk 0:00:06]} 60. Ke4 {[%clk 0:00:07]}  Qb4+ {[%clk 0:00:05]} 61. d4 {[%clk 0:00:07]}  Qb1+ {[%clk 0:00:05]} 62. Kd5 {[%clk 0:00:08]}  Qb7+ {[%clk 0:00:05]} 63. Kc5 {[%clk 0:00:06]}  Qa7+ {[%clk 0:00:05]} 64. Kc6 {[%clk 0:00:06]}  Qa4+ {[%clk 0:00:02]} 65. Kd6 {[%clk 0:00:03]}  Qa6+ {[%clk 0:00:01]} 66. Kc5 {[%clk 0:00:03]}  Qa7+ {[%clk 0:00:01]} 67. Kd6 {[%clk 0:00:04]}  Qb6+ {[%clk 0:00:01]} 68. Kd5 {[%clk 0:00:05]}  Qb5+ {[%clk 0:00:01]} 69. Ke6 {[%clk 0:00:05]} 1-0


[Site "https://www.chess.com"]

[Event "Titled Tuesday Blitz May 10 Late 2022"]
[White "Donchenko, Alexander"]
[Black "Tomaszewski, Kacper"]
[WhiteFideId "24603295"]
[BlackFideId "1127373"]
[WhiteElo "2572"]
[BlackElo "2153"]
[Result "1-0"]
[Round "01"]
[TimeControl "180+1"]
[Date "2022.05.10"]
[WhiteClock "0:01:53"]
[BlackClock "0:00:13"]

1. c4 {[%clk 0:02:59]}  g6 {[%clk 0:02:59]} 2. g3 {[%clk 0:02:59]}  Bg7 {[%clk 0:03:00]} 3. Bg2 {[%clk 0:03:00]}  Nf6 {[%clk 0:03:00]} 4. Nc3 {[%clk 0:03:01]}  O-O {[%clk 0:02:57]} 5. e4 {[%clk 0:03:01]}  e5 {[%clk 0:02:54]} 6. Nge2 {[%clk 0:03:02]}  d6 {[%clk 0:02:51]} 7. d3 {[%clk 0:03:02]}  Nc6 {[%clk 0:02:49]} 8. O-O {[%clk 0:03:02]}  Bg4 {[%clk 0:02:45]} 9. h3 {[%clk 0:03:01]}  Bd7 {[%clk 0:02:44]} 10. Nd5 {[%clk 0:03:01]}  Nxd5 {[%clk 0:02:44]} 11. cxd5 {[%clk 0:03:02]}  Ne7 {[%clk 0:02:44]} 12. d4 {[%clk 0:03:00]}  f5 {[%clk 0:02:42]} 13. dxe5 {[%clk 0:03:00]}  dxe5 {[%clk 0:02:40]} 14. Be3 {[%clk 0:02:46]}  Nc8 {[%clk 0:02:36]} 15. Nc3 {[%clk 0:02:42]}  Nd6 {[%clk 0:02:35]} 16. exf5 {[%clk 0:02:41]}  Nxf5 {[%clk 0:02:34]} 17. Bc5 {[%clk 0:02:40]}  Re8 {[%clk 0:02:29]} 18. d6 {[%clk 0:02:38]}  cxd6 {[%clk 0:02:27]} 19. Bxd6 {[%clk 0:02:35]}  Bc6 {[%clk 0:02:14]} 20. Bxc6 {[%clk 0:02:33]}  bxc6 {[%clk 0:02:15]} 21. Bc5 {[%clk 0:02:32]}  Nd4 {[%clk 0:02:04]} 22. Qg4 {[%clk 0:02:24]}  Qc8 {[%clk 0:01:59]} 23. Rac1 {[%clk 0:02:17]}  Qxg4 {[%clk 0:01:46]} 24. hxg4 {[%clk 0:02:18]}  a6 {[%clk 0:01:39]} 25. Rfd1 {[%clk 0:02:16]}  Rab8 {[%clk 0:01:33]} 26. b3 {[%clk 0:02:16]}  Bh6 {[%clk 0:01:31]} 27. Rb1 {[%clk 0:02:11]}  Nf3+ {[%clk 0:01:09]} 28. Kg2 {[%clk 0:02:10]}  Nd2 {[%clk 0:00:50]} 29. Rb2 {[%clk 0:02:10]}  Nc4 {[%clk 0:00:50]} 30. Re2 {[%clk 0:01:59]}  Na5 {[%clk 0:00:45]} 31. Ne4 {[%clk 0:01:58]}  Bg7 {[%clk 0:00:40]} 32. Rd7 {[%clk 0:01:54]}  Nb7 {[%clk 0:00:21]} 33. Ba7 {[%clk 0:01:53]}  Red8 {[%clk 0:00:19]} 34. Red2 {[%clk 0:01:52]}  Rxd7 {[%clk 0:00:16]} 35. Rxd7 {[%clk 0:01:53]}  Rd8 {[%clk 0:00:13]} 36. Rxb7 {[%clk 0:01:53]} 1-0


[Site "https://www.chess.com"]

[Event "Titled Tuesday Blitz May 10 Late 2022"]
[White "Dounis, Alexandros"]
[Black "Burke, Paul"]
[WhiteFideId "4213238"]
[BlackFideId "2605767"]
[WhiteElo "2204"]
[BlackElo "1900"]
[Result "1-0"]
[Round "01"]
[TimeControl "180+1"]
[Date "2022.05.11"]
[WhiteClock "0:01:42"]
[BlackClock "0:01:45"]

1. Nf3 {[%clk 0:03:00]}  a6 {[%clk 0:02:57]} 2. e4 {[%clk 0:02:59]}  d6 {[%clk 0:02:57]} 3. d4 {[%clk 0:02:59]}  g6 {[%clk 0:02:58]} 4. Nc3 {[%clk 0:02:57]}  Nd7 {[%clk 0:02:57]} 5. Bg5 {[%clk 0:02:53]}  h6 {[%clk 0:02:56]} 6. Be3 {[%clk 0:02:51]}  Bg7 {[%clk 0:02:56]} 7. Qd2 {[%clk 0:02:51]}  e6 {[%clk 0:02:56]} 8. a4 {[%clk 0:02:48]}  Ne7 {[%clk 0:02:56]} 9. Bd3 {[%clk 0:02:43]}  b6 {[%clk 0:02:56]} 10. O-O {[%clk 0:02:42]}  Bb7 {[%clk 0:02:56]} 11. h3 {[%clk 0:02:37]}  e5 {[%clk 0:02:45]} 12. dxe5 {[%clk 0:02:30]}  Nxe5 {[%clk 0:02:44]} 13. Nxe5 {[%clk 0:02:28]}  dxe5 {[%clk 0:02:43]} 14. Rfd1 {[%clk 0:02:22]}  Qc8 {[%clk 0:02:39]} 15. Bc4 {[%clk 0:02:19]}  Nc6 {[%clk 0:02:04]} 16. Nd5 {[%clk 0:02:10]}  Nd4 {[%clk 0:01:59]} 17. c3 {[%clk 0:02:05]}  Ne6 {[%clk 0:01:58]} 18. b4 {[%clk 0:01:51]}  g5 {[%clk 0:01:48]} 19. Qe2 {[%clk 0:01:44]}  O-O {[%clk 0:01:45]} 20. Ne7+ {[%clk 0:01:42]} 1-0


[Site "https://www.chess.com"]

[Event "Titled Tuesday Blitz May 10 Late 2022"]
[White "Dreev, Aleksey"]
[Black "Garagulya, Konstantin"]
[WhiteFideId "4100107"]
[BlackFideId "4128931"]
[WhiteElo "2625"]
[BlackElo "2329"]
[Result "1-0"]
[Round "01"]
[TimeControl "180+1"]
[Date "2022.05.10"]
[WhiteClock "0:01:50"]
[BlackClock "0:00:03"]

1. d4 {[%clk 0:02:59]}  d5 {[%clk 0:02:56]} 2. c4 {[%clk 0:02:59]}  dxc4 {[%clk 0:02:57]} 3. e3 {[%clk 0:02:58]}  Nf6 {[%clk 0:02:57]} 4. Bxc4 {[%clk 0:02:58]}  e6 {[%clk 0:02:58]} 5. Nf3 {[%clk 0:02:58]}  a6 {[%clk 0:02:59]} 6. O-O {[%clk 0:02:58]}  c5 {[%clk 0:03:00]} 7. b3 {[%clk 0:02:58]}  b5 {[%clk 0:02:59]} 8. Be2 {[%clk 0:02:57]}  Bb7 {[%clk 0:03:00]} 9. a4 {[%clk 0:02:57]}  bxa4 {[%clk 0:02:58]} 10. Rxa4 {[%clk 0:02:56]}  Nbd7 {[%clk 0:02:58]} 11. Bb2 {[%clk 0:02:52]}  Nb6 {[%clk 0:02:55]} 12. Ra2 {[%clk 0:02:51]}  Nbd5 {[%clk 0:02:55]} 13. Nbd2 {[%clk 0:02:50]}  Nb4 {[%clk 0:02:55]} 14. Ra1 {[%clk 0:02:50]}  Be7 {[%clk 0:02:53]} 15. Nc4 {[%clk 0:02:50]}  O-O {[%clk 0:02:52]} 16. Nfe5 {[%clk 0:02:37]}  Qc7 {[%clk 0:02:20]} 17. Bf3 {[%clk 0:02:37]}  Rfd8 {[%clk 0:02:17]} 18. Qe2 {[%clk 0:02:37]}  Bxf3 {[%clk 0:02:08]} 19. Qxf3 {[%clk 0:02:36]}  cxd4 {[%clk 0:02:07]} 20. Bxd4 {[%clk 0:02:34]}  Bc5 {[%clk 0:01:59]} 21. Bb2 {[%clk 0:02:27]}  Be7 {[%clk 0:01:46]} 22. Rac1 {[%clk 0:02:25]}  Rac8 {[%clk 0:01:38]} 23. g4 {[%clk 0:02:25]}  h6 {[%clk 0:01:29]} 24. Nxf7 {[%clk 0:02:24]}  Kxf7 {[%clk 0:00:45]} 25. Ne5+ {[%clk 0:02:22]}  Kg8 {[%clk 0:00:46]} 26. Rxc7 {[%clk 0:02:22]}  Rxc7 {[%clk 0:00:46]} 27. Ng6 {[%clk 0:02:19]}  Nd3 {[%clk 0:00:35]} 28. Nxe7+ {[%clk 0:02:13]}  Rxe7 {[%clk 0:00:35]} 29. Bxf6 {[%clk 0:02:14]}  Rf7 {[%clk 0:00:33]} 30. Qe4 {[%clk 0:02:04]}  Rxf6 {[%clk 0:00:16]} 31. Rd1 {[%clk 0:02:03]}  Rdf8 {[%clk 0:00:06]} 32. Qxd3 {[%clk 0:02:00]}  Rxf2 {[%clk 0:00:07]} 33. Qxa6 {[%clk 0:02:00]}  Rb2 {[%clk 0:00:03]} 34. Qxe6+ {[%clk 0:01:59]}  Kh8 {[%clk 0:00:04]} 35. Qe7 {[%clk 0:01:52]}  Rff2 {[%clk 0:00:03]} 36. Rd8+ {[%clk 0:01:50]}  Kh7 {[%clk 0:00:03]} 37. Qe4+ {[%clk 0:01:50]} 1-0


[Site "https://www.chess.com"]

[Event "Titled Tuesday Blitz May 10 Late 2022"]
[White "Ferreira, Vitor Hugo Vieira"]
[Black "Melkumyan, Hrant"]
[WhiteFideId "2119765"]
[BlackFideId "13302485"]
[WhiteElo "2165"]
[BlackElo "2604"]
[Result "0-1"]
[Round "01"]
[TimeControl "180+1"]
[Date "2022.05.10"]
[WhiteClock "0:00:30"]
[BlackClock "0:00:47"]

1. d4 {[%clk 0:02:35]}  Nf6 {[%clk 0:02:58]} 2. c4 {[%clk 0:02:32]}  g6 {[%clk 0:02:56]} 3. Nc3 {[%clk 0:02:30]}  Bg7 {[%clk 0:02:54]} 4. e4 {[%clk 0:02:30]}  d6 {[%clk 0:02:50]} 5. f3 {[%clk 0:02:30]}  O-O {[%clk 0:02:43]} 6. Be3 {[%clk 0:02:30]}  a6 {[%clk 0:02:37]} 7. Qd2 {[%clk 0:02:28]}  Nbd7 {[%clk 0:02:22]} 8. Bd3 {[%clk 0:02:28]}  c5 {[%clk 0:02:13]} 9. d5 {[%clk 0:02:27]}  b5 {[%clk 0:02:13]} 10. cxb5 {[%clk 0:02:27]}  Ne5 {[%clk 0:02:12]} 11. b6 {[%clk 0:02:01]}  Qxb6 {[%clk 0:02:11]} 12. Rb1 {[%clk 0:01:58]}  Bd7 {[%clk 0:02:10]} 13. b4 {[%clk 0:01:57]}  Nxd3+ {[%clk 0:01:56]} 14. Qxd3 {[%clk 0:01:57]}  c4 {[%clk 0:01:44]} 15. Bxb6 {[%clk 0:01:48]}  cxd3 {[%clk 0:01:44]} 16. Bd4 {[%clk 0:01:49]}  Rfc8 {[%clk 0:01:43]} 17. Kd2 {[%clk 0:01:48]}  Nxe4+ {[%clk 0:01:37]} 18. Nxe4 {[%clk 0:01:37]}  Bxd4 {[%clk 0:01:36]} 19. Kxd3 {[%clk 0:01:37]}  Bg7 {[%clk 0:01:30]} 20. Ne2 {[%clk 0:01:36]}  Bb5+ {[%clk 0:01:30]} 21. Kd2 {[%clk 0:01:36]}  Bh6+ {[%clk 0:01:29]} 22. f4 {[%clk 0:01:34]}  Rc4 {[%clk 0:01:28]} 23. N4c3 {[%clk 0:01:31]}  Bd7 {[%clk 0:01:05]} 24. g3 {[%clk 0:01:26]}  g5 {[%clk 0:01:03]} 25. Rhf1 {[%clk 0:01:14]}  gxf4 {[%clk 0:01:02]} 26. Nxf4 {[%clk 0:01:12]}  Rac8 {[%clk 0:01:02]} 27. Rb3 {[%clk 0:01:10]}  Bg7 {[%clk 0:01:00]} 28. Rf3 {[%clk 0:01:09]}  Bg4 {[%clk 0:00:58]} 29. Re3 {[%clk 0:01:08]}  Bd4 {[%clk 0:00:58]} 30. Rd3 {[%clk 0:01:06]}  Bf5 {[%clk 0:00:58]} 31. Rf3 {[%clk 0:01:02]}  Bg4 {[%clk 0:00:58]} 32. Rd3 {[%clk 0:01:02]}  Be5 {[%clk 0:00:56]} 33. a4 {[%clk 0:00:55]}  Bf5 {[%clk 0:00:55]} 34. Rf3 {[%clk 0:00:52]}  Rd4+ {[%clk 0:00:55]} 35. Ke2 {[%clk 0:00:47]}  Bg4 {[%clk 0:00:55]} 36. Nd1 {[%clk 0:00:34]}  Bxf4 {[%clk 0:00:49]} 37. gxf4 {[%clk 0:00:33]}  Rxf4 {[%clk 0:00:47]} 38. b5 {[%clk 0:00:32]}  axb5 {[%clk 0:00:47]} 39. axb5 {[%clk 0:00:31]}  Rxf3 {[%clk 0:00:46]} 40. Rxf3 {[%clk 0:00:30]}  Rc5 {[%clk 0:00:47]} 41. Ne3 {[%clk 0:00:30]}  Bxf3+ {[%clk 0:00:46]} 42. Kxf3 {[%clk 0:00:30]}  Rxb5 {[%clk 0:00:47]} 0-1


[Site "https://www.chess.com"]